fUSD/lending_fUSD_20250209
["ID","MTS","AMOUNT","RATE_DAILY","PERIOD"]
[352372992,1739065864134,-500.0,0.00010814,2]
[352372993,1739065864143,-1850.11,0.00010814,2]
[352372994,1739065864153,-500.0,0.00010814,2]
[352372995,1739065864163,-830.1,0.00010814,2]
[352372996,1739065864172,-837.23,0.00010814,2]
[352372997,1739065864181,-1605.72,0.00010814,2]
[352372998,1739065864190,-1476.07,0.00010814,2]
[352372999,1739065864200,-2142.18,0.00010814,2]
[352373000,1739065864209,-529.18945805,0.00010814,2]
[352373001,1739065864218,-500.0,0.00010814,2]
[352373002,1739065864228,-961.51,0.00010814,2]
[352373003,1739065864238,-500.0,0.00010814,2]
[352373004,1739065864247,-500.0,0.00010814,2]
[352373005,1739065864257,-829.85,0.00010814,2]
[352373006,1739065864267,-1156.22,0.00010814,2]
[352373007,1739065864277,-629.87,0.00010814,2]
[352373008,1739065864286,-1910.75,0.00010814,2]
[352373009,1739065864296,-578.40310998,0.00010814,2]
[352373010,1739065864305,-510.73942488,0.00010814,2]
[352373011,1739065864314,-729.05,0.00010814,2]
[352373012,1739065864324,-500.0,0.00010814,2]
[352373013,1739065864333,-500.0,0.00010814,2]
[352373014,1739065864342,-1292.26,0.00010814,2]
[352373015,1739065864351,-1023.31,0.00010814,2]
[352373016,1739065864361,-500.0,0.00010814,2]
[352373017,1739065864370,-500.0,0.00010814,2]
[352373018,1739065864380,-1324.77,0.00010814,2]
[352373019,1739065864389,-1235.9,0.00010814,2]
[352373020,1739065864399,-574.84,0.00010814,2]
[352373021,1739065864409,-523.25172302,0.00010814,2]
[352373022,1739065864418,-500.0,0.00010814,2]
[352373023,1739065864428,-678.2,0.00010814,2]
[352373024,1739065864438,-1451.54,0.00010814,2]
[352373025,1739065864448,-851.41,0.00010814,2]
[352373026,1739065864457,-500.0,0.00010814,2]
[352373027,1739065864466,-500.0,0.00010814,2]
[352373028,1739065864475,-500.0,0.00010814,2]
[352373029,1739065864485,-500.0,0.00010814,2]
[352373030,1739065864494,-1660.93,0.00010814,2]
[352373031,1739065864503,-500.0,0.00010814,2]
[352373032,1739065864513,-2348.11,0.00010814,2]
[352373033,1739065864522,-940.4,0.00010814,2]
[352373034,1739065864531,-500.0,0.00010814,2]
[352373035,1739065864541,-3337.18,0.00010814,2]
[352373036,1739065864551,-2430.64,0.00010814,2]
[352373037,1739065864560,-500.0,0.00010814,2]
[352373038,1739065864569,-508.38806262,0.00010814,2]
[352373039,1739065864578,-500.0,0.00010814,2]
[352373040,1739065864587,-1070.1,0.00010814,2]
[352373041,1739065864596,-2276.95,0.00010814,2]
[352373042,1739065864605,-672.03,0.00010814,2]
[352373043,1739065864614,-1406.86,0.00010814,2]
[352373044,1739065864623,-500.0,0.00010814,2]
[352373045,1739065864631,-960.92,0.00010814,2]
[352373046,1739065864640,-1197.83,0.00010814,2]
[352373047,1739065864649,-500.0,0.00010814,2]
[352373048,1739065864658,-908.43,0.00010814,2]
[352373049,1739065864667,-1585.45,0.00010814,2]
[352373050,1739065864676,-500.0,0.00010814,2]
[352373051,1739065864686,-669.33,0.00010814,2]
[352373052,1739065864695,-500.0,0.00010814,2]
[352373053,1739065864704,-504.04,0.00010814,2]
[352373054,1739065864714,-500.0,0.00010814,2]
[352373055,1739065864723,-506.74881279,0.00010814,2]
[352373056,1739065864732,-1615.81,0.00010814,2]
[352373057,1739065864741,-500.0,0.00010814,2]
[352373058,1739065864750,-500.0,0.00010814,2]
[352373059,1739065864760,-1554.99,0.00010814,2]
[352373060,1739065864769,-500.0,0.00010814,2]
[352373061,1739065864778,-904.99,0.00010814,2]
[352373062,1739065864787,-1316.45,0.00010814,2]
[352373063,1739065864796,-500.0,0.00010814,2]
[352373064,1739065864805,-500.0,0.00010814,2]
[352373065,1739065864815,-773.68,0.00010814,2]
[352373066,1739065864823,-1321.5,0.00010814,2]
[352373067,1739065864832,-563.42,0.00010814,2]
[352373068,1739065864841,-1652.3,0.00010814,2]
[352373069,1739065864850,-1176.32,0.00010814,2]
[352373070,1739065864859,-161.37624289,0.00010814,2]
[352373071,1739065864871,-500.0,0.00010814,2]
[352373072,1739065864880,-2093.5,0.00010814,2]
[352373073,1739065864889,-2834.78,0.00010814,2]
[352373074,1739065864899,-1276.77,0.00010814,2]
[352373075,1739065864907,-1561.18,0.00010814,2]
[352373076,1739065864917,-605.41,0.00010814,2]
[352373077,1739065864926,-1124.08,0.00010814,2]
[352373078,1739065864935,-509.68927081,0.00010814,2]
[352373079,1739065864944,-1196.21,0.00010814,2]
[352373080,1739065864953,-510.35828515,0.00010814,2]
[352373081,1739065864962,-449.33708681,0.00010814,2]
[352373082,1739065864971,-695.25,0.00010814,2]
[352373083,1739065864980,-518.29,0.00010814,2]
[352373084,1739065864992,-511.89837074,0.00010814,2]
[352373085,1739065865001,-1471.32,0.00010814,2]
[352373086,1739065865010,-1636.79,0.00010814,2]
[352373087,1739065865020,-1949.4,0.00010814,2]
[352373088,1739065865029,-627.54,0.00010814,2]
[352373089,1739065865039,-1887.98,0.00010814,2]
[352373090,1739065865048,-1518.61,0.00010814,2]
[352373091,1739065865057,-500.0,0.00010814,2]
[352373092,1739065865066,-816.06,0.00010814,2]
[352373093,1739065865075,-500.0,0.00010814,2]
[352373094,1739065865084,-500.0,0.00010814,2]
[352373095,1739065865094,-700.89,0.00010814,2]
[352373096,1739065865106,-2133.9,0.00010814,2]
[352373097,1739065865116,-565.73,0.00010814,2]
[352373098,1739065865125,-500.0,0.00010814,2]
[352373099,1739065865135,-500.0,0.00010814,2]
[352373100,1739065865144,-500.0,0.00010814,2]
[352373101,1739065865153,-362.41267608,0.00010814,2]
[352373102,1739065865162,-2090.87,0.00010814,2]
[352373103,1739065865172,-1114.73,0.00010814,2]
[352373104,1739065865181,-2216.88,0.00010814,2]
[352373105,1739065865191,-500.0,0.00010814,2]
[352373106,1739065865200,-500.0,0.00010814,2]
[352373107,1739065865209,-500.0,0.00010814,2]
[352373108,1739065865218,-1425.9,0.00010814,2]
[352373109,1739065865227,-4849.59,0.00010814,2]
[352373110,1739065865237,-2088.29,0.00010814,2]
[352373111,1739065865246,-864.75,0.00010814,2]
[352373112,1739065865256,-500.0,0.00010814,2]
[352373113,1739065865265,-631.13,0.00010814,2]
[352373114,1739065865274,-500.0,0.00010814,2]
[352373115,1739065865283,-3006.06,0.00010814,2]
[352373116,1739065865292,-500.0,0.00010814,2]
[352373117,1739065865302,-1354.44,0.00010814,2]
[352373118,1739065865311,-500.0,0.00010814,2]
[352373119,1739065865320,-447.73520045,0.00010814,2]
[352373120,1739065865329,-175.82,0.00010814,2]
[352373121,1739065865338,-500.0,0.00010815,2]
[352373122,1739065865347,-512.088845,0.00010815,2]
[352373123,1739065865356,-500.0,0.00010815,2]
[352373124,1739065865366,-500.0,0.00010815,2]
[352373125,1739065865375,-506.13,0.00010815,2]
[352373126,1739065865384,-409.09840498,0.00010815,2]
[352373127,1739065865392,-526.02076712,0.00010815,2]
[352373128,1739065865402,-512.38159392,0.00010815,2]
[352373129,1739065865410,-500.0,0.00010815,2]
[352373130,1739065865420,-512.4311047,0.00010815,2]
[352373131,1739065865430,-500.0,0.00010815,2]
[352373132,1739065865441,-265.02822467,0.00010815,2]
[352373133,1739065865451,-500.0,0.00010815,2]
[352373134,1739065865460,-500.0,0.00010815,2]
[352373135,1739065865469,-500.0,0.00010815,2]
[352373136,1739065865478,-509.65177017,0.00010815,2]
[352373137,1739065865488,-640.82447856,0.00010815,2]
[352373138,1739065865498,-500.0,0.00010815,2]
[352373139,1739065865507,-221.2125179,0.00010815,2]
[352373140,1739065865516,-500.0,0.00010815,2]
[352373141,1739065865525,-500.0,0.00010815,2]
[352373142,1739065865534,-500.0,0.00010815,2]
[352373143,1739065865543,-500.0,0.00010815,2]
[352373144,1739065865552,-507.5916948,0.00010815,2]
[352373145,1739065865562,-500.0,0.00010815,2]
[352373146,1739065865571,-500.0,0.00010815,2]
[352373147,1739065865580,-500.0,0.00010815,2]
[352373148,1739065865589,-500.0,0.00010815,2]
[352373149,1739065865598,-500.0,0.00010815,2]
[352373150,1739065865608,-643.17662273,0.00010815,2]
[352373151,1739065865617,-500.0,0.00010815,2]
[352373152,1739065865627,-500.0,0.00010815,2]
[352373153,1739065865636,-500.0,0.00010815,2]
[352373154,1739065865645,-508.91234295,0.00010815,2]
[352373155,1739065865655,-500.0,0.00010815,2]
[352373156,1739065865666,-500.0,0.00010815,2]
[352373157,1739065865675,-500.0,0.00010815,2]
[352373158,1739065865685,-560.91176807,0.00010815,2]
[352373159,1739065865694,-500.0,0.00010815,2]
[352373160,1739065865703,-500.0,0.00010815,2]
[352373161,1739065865712,-196.49677252,0.00010815,2]
[352373162,1739065865722,-510.36700755,0.00010815,2]
[352373163,1739065865732,-508.12639451,0.00010815,2]
[352373164,1739065865742,-500.0,0.00010815,2]
[352373165,1739065865752,-500.0,0.00010815,2]
[352373166,1739065865762,-553.45126038,0.00010815,2]
[352373167,1739065865771,-508.45271146,0.00010815,2]
[352373168,1739065865781,-500.0,0.00010815,2]
[352373169,1739065865791,-500.0,0.00010815,2]
[352373170,1739065865800,-609.9327554,0.00010815,2]
[352373171,1739065865810,-345.52578493,0.00010815,2]
[352373172,1739065865821,-500.0,0.00010815,2]
[352373173,1739065865833,-515.1451514,0.00010815,2]
[352373174,1739065865844,-527.8398877,0.00010815,2]
[352373175,1739065865858,-500.0,0.00010815,2]
[352373176,1739065865867,-500.0,0.00010815,2]
[352373177,1739065865877,-500.0,0.00010815,2]
[352373178,1739065865886,-500.0,0.00010815,2]
[352373179,1739065865896,-500.0,0.00010815,2]
[352373180,1739065865906,-500.0,0.00010815,2]
[352373181,1739065865916,-500.0,0.00010815,2]
[352373182,1739065865926,-500.0,0.00010815,2]
[352373183,1739065865937,-500.0,0.00010815,2]
[352373184,1739065865948,-500.0,0.00010815,2]
[352373185,1739065865958,-500.0,0.00010815,2]
[352373186,1739065865968,-379.93991329,0.00010815,2]
[352373187,1739065865980,-500.0,0.00010815,2]
[352373188,1739065865989,-535.93441598,0.00010815,2]
[352373189,1739065865999,-500.0,0.00010815,2]
[352373190,1739065866008,-569.73105148,0.00010815,2]
[352373191,1739065866018,-500.0,0.00010815,2]
[352373192,1739065866028,-517.69,0.00010815,2]
[352373193,1739065866038,-487.66460754,0.00010815,2]
[352373194,1739065866048,-554.93,0.00010815,2]
[352373195,1739065866058,-500.0,0.00010815,2]
[352373196,1739065866070,-500.0,0.00010815,2]
[352373197,1739065866080,-505.7860132,0.00010815,2]
[352373198,1739065866090,-276.85714291,0.00010815,2]
[352373199,1739065866102,-1083.06,0.00010815,2]
[352373200,1739065866112,-508.81478619,0.00010815,2]
[352373201,1739065866122,-561.04816387,0.00010815,2]
[352373202,1739065866131,-500.0,0.00010815,2]
[352373203,1739065866142,-533.58,0.00010815,2]
[352373204,1739065866152,-899.57,0.00010815,2]
[352373205,1739065866162,-500.0,0.00010815,2]
[352373206,1739065866171,-2827.44,0.00010815,2]
[352373207,1739065866182,-509.41863824,0.00010815,2]
[352373208,1739065866191,-212.48754118,0.00010815,2]
[352373209,1739065866201,-500.0,0.00010815,2]
[352373210,1739065866211,-500.0,0.00010815,2]
[352373211,1739065866220,-814.38,0.00010815,2]
[352373212,1739065866231,-505.41821533,0.00010815,2]
[352373213,1739065866240,-1161.87,0.00010815,2]
[352373214,1739065866250,-500.0,0.00010815,2]
[352373215,1739065866260,-1281.49,0.00010815,2]
[352373216,1739065866269,-503.74069371,0.00010815,2]
[352373217,1739065866279,-1000.0,0.00010815,2]
[352373218,1739065866289,-500.0,0.00010815,2]
[352373219,1739065866298,-500.0,0.00010815,2]
[352373220,1739065866308,-1007.35,0.00010815,2]
[352373221,1739065866317,-500.0,0.00010815,2]
[352373222,1739065866327,-500.0,0.00010815,2]
[352373223,1739065866336,-500.0,0.00010815,2]
[352373224,1739065866346,-1979.78,0.00010815,2]
[352373225,1739065866355,-500.0,0.00010815,2]
[352373226,1739065866364,-2191.6,0.00010815,2]
[352373227,1739065866374,-500.0,0.00010815,2]
[352373228,1739065866383,-500.0,0.00010815,2]
[352373229,1739065866392,-500.0,0.00010815,2]
[352373230,1739065866403,-500.0,0.00010815,2]
[352373231,1739065866412,-500.0,0.00010815,2]
[352373232,1739065866422,-380.84,0.00010818,2]
[352373233,1739065866432,-150.826,0.00010822,2]
[352373234,1739065866441,-783.39051409,0.00010835,2]
[352373235,1739065866450,-200.0,0.00010838,2]
[352373236,1739065866460,-200.0,0.00010846,2]
[352373237,1739065866469,-556.38052737,0.00010872,2]
[352373238,1739065866480,-556.38052737,0.00010888,2]
[352373239,1739065866490,-670.26025,0.0001089,2]
[352373240,1739065866500,-556.38052737,0.00010899,2]
[352373241,1739065866509,-556.38052737,0.00010899,2]
[352373242,1739065866519,-360.31286503,0.000109,2]
[352373243,1739065866529,-400.0,0.000109,3]
[352373244,1739065866538,-164.54601239,0.000109,2]
[352373245,1739065866548,-205.67765474,0.000109,2]
[352373246,1739065866558,-674.96120232,0.000109,2]
[352373247,1739065866568,-207.94909976,0.000109,2]
[352373248,1739065866577,-8009.40911,0.000109,2]
[352373249,1739065866587,-2636.242,0.00010949,2]
[352373250,1739065866596,-500.0,0.0001095,2]
[352373251,1739065866605,-847.54,0.0001095,2]
[352373252,1739065866616,-500.0,0.0001095,2]
[352373253,1739065866625,-500.0,0.0001095,2]
[352373254,1739065866635,-500.0,0.00010951,2]
[352373255,1739065866645,-777.99,0.00010951,2]
[352373256,1739065866654,-500.0,0.00010951,2]
[352373257,1739065866664,-580.08,0.00010951,2]
[352373258,1739065866673,-500.0,0.00010951,2]
[352373259,1739065866683,-512.09403103,0.00010951,2]
[352373260,1739065866692,-175.74434521,0.00010951,2]
[352373261,1739065866702,-500.0,0.00010951,2]
[352373262,1739065866711,-419.44246343,0.00010951,2]
[352373263,1739065866721,-668.51,0.00010951,2]
[352373264,1739065866731,-500.0,0.00010951,2]
[352373265,1739065866741,-459.94421766,0.00010951,2]
[352373266,1739065866750,-500.0,0.00010951,2]
[352373267,1739065866760,-514.94805315,0.00010951,2]
[352373268,1739065866769,-500.0,0.00010951,2]
[352373269,1739065866779,-562.51,0.00010951,2]
[352373270,1739065866788,-730.87,0.00010951,2]
[352373271,1739065866798,-734.963011,0.00010951,2]
[352373272,1739065866808,-500.0,0.00010951,2]
[352373273,1739065866818,-500.0,0.00010951,2]
[352373274,1739065866827,-778.15,0.00010951,2]
[352373275,1739065866837,-649.98218794,0.00010951,2]
[352373276,1739065866846,-828.926949,0.00010951,2]
[352373277,1739065866855,-500.0,0.00010951,2]
[352373278,1739065866865,-500.0,0.00010951,2]
[352373279,1739065866875,-500.0,0.00010951,2]
[352373280,1739065866885,-500.0,0.00010951,2]
[352373281,1739065866895,-782.31,0.00010951,2]
[352373282,1739065866904,-158.879939,0.00010951,2]
[352373283,1739065866914,-500.0,0.00010951,2]
[352373284,1739065866924,-500.0,0.00010951,2]
[352373285,1739065866934,-762.04,0.00010951,2]
[352373286,1739065866943,-500.0,0.00010951,2]
[352373287,1739065866952,-500.0,0.00010951,2]
[352373288,1739065866962,-513.33,0.00010951,2]
[352373289,1739065866972,-500.0,0.00010951,2]
[352373290,1739065866981,-500.0,0.00010951,2]
[352373291,1739065866991,-783.32,0.00010951,2]
[352373292,1739065867001,-848.63,0.00010951,2]
[352373293,1739065867010,-500.0,0.00010951,2]
[352373294,1739065867020,-503.57,0.00010951,2]
[352373295,1739065867031,-649.81615465,0.00010951,2]
[352373296,1739065867042,-510.72509047,0.00010951,2]
[352373297,1739065867052,-500.0,0.00010951,2]
[352373298,1739065867062,-509.84769725,0.00010951,2]
[352373299,1739065867072,-535.45,0.00010951,2]
[352373300,1739065867082,-692.86,0.00010951,2]
[352373301,1739065867094,-685.54,0.00010951,2]
[352373302,1739065867106,-350.21884924,0.00010951,2]
[352373303,1739065867116,-672.36,0.00010951,2]
[352373304,1739065867126,-500.0,0.00010951,2]
[352373305,1739065867138,-716.17,0.00010951,2]
[352373306,1739065867148,-337.52372424,0.00010951,2]
[352373307,1739065867158,-500.0,0.00010951,2]
[352373308,1739065867168,-500.0,0.00010951,2]
[352373309,1739065867179,-500.0,0.00010951,2]
[352373310,1739065867190,-500.0,0.00010951,2]
[352373311,1739065867201,-1452.54,0.00010951,2]
[352373312,1739065867211,-510.00831615,0.00010951,2]
[352373313,1739065867222,-919.49,0.00010951,2]
[352373314,1739065867233,-1599.2,0.00010951,2]
[352373315,1739065867243,-500.0,0.00010951,2]
[352373316,1739065867253,-1019.85,0.00010951,2]
[352373317,1739065867264,-1931.5,0.00010951,2]
[352373318,1739065867275,-836.62,0.00010951,2]
[352373319,1739065867284,-500.0,0.00010951,2]
[352373320,1739065867294,-500.0,0.00010951,2]
[352373321,1739065867305,-1850.11,0.00010951,2]
[352373322,1739065867315,-500.0,0.00010951,2]
[352373323,1739065867325,-830.1,0.00010951,2]
[352373324,1739065867334,-837.23,0.00010951,2]
[352373325,1739065867344,-1605.72,0.00010951,2]
[352373326,1739065867354,-1476.07,0.00010951,2]
[352373327,1739065867364,-2142.18,0.00010951,2]
[352373328,1739065867374,-500.0,0.00010951,2]
[352373329,1739065867385,-961.51,0.00010951,2]
[352373330,1739065867395,-500.0,0.00010951,2]
[352373331,1739065867405,-220.1289628,0.00010951,2]
[352373332,1739065867415,-829.85,0.00010951,2]
[352373333,1739065867426,-1156.22,0.00010951,2]
[352373334,1739065867437,-629.87,0.00010951,2]
[352373335,1739065867447,-1910.75,0.00010951,2]
[352373336,1739065867457,-729.05,0.00010951,2]
[352373337,1739065867467,-500.0,0.00010951,2]
[352373338,1739065867477,-158.879939,0.00010951,2]
[352373339,1739065867488,-500.0,0.00010951,2]
[352373340,1739065867498,-1292.26,0.00010951,2]
[352373341,1739065867509,-1023.31,0.00010951,2]
[352373342,1739065867519,-500.0,0.00010951,2]
[352373343,1739065867529,-587.42458583,0.00010951,2]
[352373344,1739065867540,-1324.77,0.00010951,2]
[352373345,1739065867550,-1235.9,0.00010951,2]
[352373346,1739065867560,-574.84,0.00010951,2]
[352373347,1739065867570,-500.0,0.00010951,2]
[352373348,1739065867581,-678.2,0.00010951,2]
[352373349,1739065867591,-1451.54,0.00010951,2]
[352373350,1739065867601,-851.41,0.00010951,2]
[352373351,1739065867611,-500.0,0.00010951,2]
[352373352,1739065867620,-500.0,0.00010951,2]
[352373353,1739065867631,-500.0,0.00010951,2]
[352373354,1739065867641,-510.29851372,0.00010951,2]
[352373355,1739065867651,-1660.93,0.00010951,2]
[352373356,1739065867661,-500.0,0.00010951,2]
[352373357,1739065867671,-2348.11,0.00010951,2]
[352373358,1739065867681,-940.4,0.00010951,2]
[352373359,1739065867691,-524.75562687,0.00010951,2]
[352373360,1739065867701,-3337.18,0.00010951,2]
[352373361,1739065867711,-2430.64,0.00010951,2]
[352373362,1739065867722,-500.0,0.00010951,2]
[352373363,1739065867732,-500.0,0.00010951,2]
[352373364,1739065867742,-1070.1,0.00010951,2]
[352373365,1739065867752,-2276.95,0.00010951,2]
[352373366,1739065867762,-672.03,0.00010951,2]
[352373367,1739065867772,-1406.86,0.00010951,2]
[352373368,1739065867782,-500.0,0.00010951,2]
[352373369,1739065867792,-960.92,0.00010951,2]
[352373370,1739065867802,-1197.83,0.00010951,2]
[352373371,1739065867812,-500.0,0.00010951,2]
[352373372,1739065867823,-908.43,0.00010951,2]
[352373373,1739065867833,-1585.45,0.00010951,2]
[352373374,1739065867843,-500.0,0.00010951,2]
[352373375,1739065867853,-669.33,0.00010951,2]
[352373376,1739065868070,-512.92307615,0.00010951,2]
[352373377,1739065868080,-504.04,0.00010951,2]
[352373378,1739065868090,-1615.81,0.00010951,2]
[352373379,1739065868104,-527.81860314,0.00010951,2]
[352373380,1739065868114,-500.0,0.00010951,2]
[352373381,1739065868124,-1554.99,0.00010951,2]
[352373382,1739065868135,-500.0,0.00010951,2]
[352373383,1739065868144,-904.99,0.00010951,2]
[352373384,1739065868154,-1316.45,0.00010951,2]
[352373385,1739065868163,-500.0,0.00010951,2]
[352373386,1739065868173,-500.0,0.00010951,2]
[352373387,1739065868183,-773.68,0.00010951,2]
[352373388,1739065868193,-1321.5,0.00010951,2]
[352373389,1739065868203,-563.42,0.00010951,2]
[352373390,1739065868214,-1652.3,0.00010951,2]
[352373391,1739065868224,-1176.32,0.00010951,2]
[352373392,1739065868234,-500.0,0.00010951,2]
[352373393,1739065868243,-2093.5,0.00010951,2]
[352373394,1739065868253,-2834.78,0.00010951,2]
[352373395,1739065868263,-1276.77,0.00010951,2]
[352373396,1739065868273,-1561.18,0.00010951,2]
[352373397,1739065868283,-605.41,0.00010951,2]
[352373398,1739065868293,-1124.08,0.00010951,2]
[352373399,1739065868302,-1196.21,0.00010951,2]
[352373400,1739065868312,-695.25,0.00010951,2]
[352373401,1739065868321,-518.29,0.00010951,2]
[352373402,1739065868332,-1471.32,0.00010951,2]
[352373403,1739065868341,-1636.79,0.00010951,2]
[352373404,1739065868351,-1949.4,0.00010951,2]
[352373405,1739065868361,-627.54,0.00010951,2]
[352373406,1739065868372,-1887.98,0.00010951,2]
[352373407,1739065868382,-1518.61,0.00010951,2]
[352373408,1739065868392,-500.0,0.00010951,2]
[352373409,1739065868401,-816.06,0.00010951,2]
[352373410,1739065868411,-500.0,0.00010951,2]
[352373411,1739065868422,-512.50007381,0.00010951,2]
[352373412,1739065868432,-700.89,0.00010951,2]
[352373413,1739065868442,-2133.9,0.00010951,2]
[352373414,1739065868451,-565.73,0.00010951,2]
[352373415,1739065868461,-500.0,0.00010951,2]
[352373416,1739065868470,-500.0,0.00010951,2]
[352373417,1739065868480,-500.0,0.00010951,2]
[352373418,1739065868490,-2090.87,0.00010951,2]
[352373419,1739065868500,-1114.73,0.00010951,2]
[352373420,1739065868510,-2216.88,0.00010951,2]
[352373421,1739065868521,-477.86197277,0.00010951,2]
[352373422,1739065868531,-500.0,0.00010951,2]
[352373423,1739065868541,-1425.9,0.00010951,2]
[352373424,1739065868551,-4849.59,0.00010951,2]
[352373425,1739065868561,-2088.29,0.00010951,2]
[352373426,1739065868571,-864.75,0.00010951,2]
[352373427,1739065868580,-500.0,0.00010951,2]
[352373428,1739065868589,-631.13,0.00010951,2]
[352373429,1739065868599,-500.0,0.00010951,2]
[352373430,1739065868608,-3006.06,0.00010951,2]
[352373431,1739065868617,-587.69,0.00010951,2]
[352373432,1739065868627,-1354.44,0.00010951,2]
[352373433,1739065868647,-495.36148762,0.00010951,2]
[352373434,1739065868658,-500.0,0.00010952,2]
[352373435,1739065868667,-500.0,0.00010952,2]
[352373436,1739065868677,-500.0,0.00010952,2]
[352373437,1739065868688,-506.13,0.00010952,2]
[352373438,1739065868697,-500.0,0.00010952,2]
[352373439,1739065868707,-500.0,0.00010952,2]
[352373440,1739065868716,-500.0,0.00010952,2]
[352373441,1739065868726,-481.96278855,0.00010952,2]
[352373442,1739065868736,-500.0,0.00010952,2]
[352373443,1739065868746,-500.0,0.00010952,2]
[352373444,1739065868755,-500.0,0.00010952,2]
[352373445,1739065868766,-325.85976805,0.00010952,2]
[352373446,1739065868775,-488.33280874,0.00010952,2]
[352373447,1739065868784,-500.0,0.00010952,2]
[352373448,1739065868794,-500.0,0.00010952,2]
[352373449,1739065868804,-215.31891438,0.00010952,2]
[352373450,1739065868812,-483.27716706,0.00010952,2]
[352373451,1739065868822,-452.86939106,0.00010952,2]
[352373452,1739065868831,-519.42908088,0.00010952,2]
[352373453,1739065868840,-500.0,0.00010952,2]
[352373454,1739065868850,-500.0,0.00010952,2]
[352373455,1739065868859,-603.53283132,0.00010952,2]
[352373456,1739065868868,-500.0,0.00010952,2]
[352373457,1739065868878,-500.0,0.00010952,2]
[352373458,1739065868887,-364.56014921,0.00010952,2]
[352373459,1739065868896,-500.0,0.00010952,2]
[352373460,1739065868905,-205.06585838,0.00010952,2]
[352373461,1739065868915,-202.99138802,0.00010952,2]
[352373462,1739065868924,-500.0,0.00010952,2]
[352373463,1739065868933,-213.75341843,0.00010952,2]
[352373464,1739065868943,-500.0,0.00010952,2]
[352373465,1739065868952,-155.92324778,0.00010952,2]
[352373466,1739065868962,-500.0,0.00010952,2]
[352373467,1739065868971,-500.0,0.00010952,2]
[352373468,1739065868980,-500.0,0.00010952,2]
[352373469,1739065868989,-500.0,0.00010952,2]
[352373470,1739065868999,-500.0,0.00010952,2]
[352373471,1739065869008,-508.05250245,0.00010952,2]
[352373472,1739065869018,-512.41469325,0.00010952,2]
[352373473,1739065869027,-500.0,0.00010952,2]
[352373474,1739065869037,-500.0,0.00010952,2]
[352373475,1739065869046,-500.0,0.00010952,2]
[352373476,1739065869055,-506.51726561,0.00010952,2]
[352373477,1739065869065,-500.0,0.00010952,2]
[352373478,1739065869074,-507.79260555,0.00010952,2]
[352373479,1739065869083,-500.0,0.00010952,2]
[352373480,1739065869092,-517.69,0.00010952,2]
[352373481,1739065869104,-554.93,0.00010952,2]
[352373482,1739065869115,-500.0,0.00010952,2]
[352373483,1739065869124,-500.0,0.00010952,2]
[352373484,1739065869134,-1083.06,0.00010952,2]
[352373485,1739065869144,-500.0,0.00010952,2]
[352373486,1739065869153,-533.58,0.00010952,2]
[352373487,1739065869163,-899.57,0.00010952,2]
[352373488,1739065869175,-500.0,0.00010952,2]
[352373489,1739065869186,-2827.44,0.00010952,2]
[352373490,1739065869196,-500.0,0.00010952,2]
[352373491,1739065869206,-306.60640207,0.00010952,2]